Cogmind - Beta 15 @@@ ROGUE MODE // 2025.08.14 @ 16:18:39 Player: IEP Result: Destroyed by G-47 Trooper with Particle Gun Performance ------------- Evolutions (2) 1000 Regions Visited (6) 1200 Robots Destroyed (40) 200 Value Destroyed (1000) 1000 Prototype IDs (0) 0 Alien Tech Used (0) 0 Bonus (0) 0 TOTAL SCORE: 3400 Bonus ------- None Cogmind --------- Core Integrity 0/550 Matter 290/300 Energy 100/100 System Corruption 0% Temperature Cool (46) Movement Core (350) Ox6 Location -8/Storage Parts ------- > --- POWER (1) -------- (None) > --- PROPULSION (4) --- (None) > --- UTILITY (4) ------ Large Storage Unit Structural Scanner > --- WEAPON (2) ------- (None) > --- INVENTORY (15) --- Light Ion Engine Terrain Scanner Peak State ------------ > --- POWER ------------ Light Ion Engine > --- PROPULSION ------- Aluminum Leg Aluminum Leg > --- UTILITY ---------- Small Storage Unit Structural Scanner Seismic Detector Medium Armor Plating > --- WEAPON ----------- Field Laser Ion Cannon > --- INVENTORY -------- Light Ion Engine Light Ion Engine Light Ion Engine Large Storage Unit Terrain Scanner Heavy EM Pulse Gun Field Laser Field Laser [Rating: 15] Favorites ----------- Power Light Ion Engine Engine Light Ion Engine Propulsion Aluminum Leg Leg Aluminum Leg Wheel Compact Wheel Utility Small Storage Unit Device Structural Scanner Storage Small Storage Unit Protection Medium Armor Plating Weapon Field Laser Energy Gun Field Laser Energy Cannon Ion Cannon Ballistic Gun Assault Rifle Ballistic Cannon Light Cannon Special Weapon Mining Laser Build | -11 -10 -10 -9 -9 -8 -8 ------- Run | Yrd Mat Min Mat Min Mat Sto Slots Evolved 4 | . . . 2 . 2 . Power . | . . . . . . . Propulsion 2 | . . . 2 . . . Utility 2 | . . . . . 2 . Weapon . | . . . . . . . Parts Attached 32 | 6 4 . 7 6 5 4 Power 7 | 1 . . 3 1 . 2 Engine 7 | 1 . . 3 1 . 2 Core . | . . . . . . . Reactor . | . . . . . . . Propulsion 8 | 2 . . 3 2 1 . Treads . | . . . . . . . Leg 6 | 2 . . 1 2 1 . Wheel 2 | . . . 2 . . . Hover . | . . . . . . . Flight . | . . . . . . . Utility 5 | 1 1 . . 1 2 . Device 2 | . 1 . . . 1 . Storage 2 | 1 . . . 1 . . Processor . | . . . . . . . Hackware . | . . . . . . . Protection 1 | . . . . . 1 . Artifact . | . . . . . . . Weapon 12 | 2 3 . 1 2 2 2 Energy Gun 6 | 1 . . 1 1 1 2 Energy Cannon 1 | . . . . . 1 . Ballistic Gun 2 | 1 1 . . . . . Ballistic Cannon 2 | . 1 . . 1 . . Launcher . | . . . . . . . Special Weapon 1 | . 1 . . . . . Impact Weapon . | . . . . . . . Slashing Weapon . | . . . . . . . Piercing Weapon . | . . . . . . . Special Melee Weapon . | . . . . . . . Unidentified Prototypes . | . . . . . . . Parts Lost 25 | . 1 . 9 4 . 11 Power 6 | . . . 2 1 . 3 Propulsion 8 | . . . 4 2 . 2 Utility 2 | . . . . . . 2 Weapon 9 | . 1 . 3 1 . 4 Highest Loss Streak 6 | . 1 . 5 2 . 6 To Critical Strikes . | . . . . . . . Average Backups 6 | 2 6 8 6 7 7 6 Power 2 | . 1 3 3 2 3 2 Propulsion . | 1 2 2 . . . . Utility 1 | . . 1 1 2 2 1 Weapon 2 | . 2 2 1 1 2 2 Tool/Special . | . . . . . . . Unused Backups 5 | . . . 1 . 2 2 Power 2 | . . . 1 . . 1 Propulsion . | . . . . . . . Utility 1 | . . . . . . 1 Weapon 2 | . . . . . 2 . Tool/Special . | . . . . . . . Average Slot Usage (%) 74 | . 97 100 83 65 69 67 Engine 9 | . 14 14 9 8 9 8 Leg 14 | . 28 28 14 12 9 11 Wheel 2 | . . . 18 . . . Device 13 | . 12 14 11 11 17 15 Storage 10 | . 14 14 11 11 9 9 Protection 2 | . . . . . 6 5 Energy Gun 9 | . 8 . 7 10 10 11 Energy Cannon 2 | . . . . . 5 5 Ballistic Gun 1 | . 13 . . . . . Ballistic Cannon 5 | . 5 14 7 11 1 . Special Weapon 1 | . . 14 2 . . . Peak Build Rating 15 | 6 9 9 12 8 15 15 Average Rating 10 | 4 7 9 9 6 12 12 On Entrance 7 | . 6 9 9 7 7 15 Naked Turns . | . . . . . . . Heaviest Build 26 | 14 16 16 16 17 26 26 Greatest Support 32 | 20 20 20 32 20 20 20 Greatest Overweight (x) 6 | 2 . . 4 5 2 6 Average Overweight (x) . | . . . . . 1 1 Largest Inventory Capacity 15 | 8 8 8 8 15 8 15 Average Capacity 8 | 6 8 8 8 8 8 8 Most Carried 8 | 5 8 8 8 8 8 8 Average Carried 6 | 2 6 8 6 7 7 6 Final Capacity 15 | 8 8 8 8 8 8 15 Final Carried 8 | 4 8 8 8 8 8 2 Class Distribution -------------------- 100% | Mutant Dominant Class ---------------- Mutant | -10/Materials Mutant | -10/Mines Mutant | -9/Materials Mutant | -9/Mines Mutant | -8/Materials Mutant | -8/Storage Resources | -11 -10 -10 -9 -9 -8 -8 ----------- Run | Yrd Mat Min Mat Min Mat Sto Matter Collected 650 | 199 28 . 213 135 50 25 Remotely . | . . . . . . . Salvage Created 1037 | . 80 . 206 177 299 275 Parts 62 | . 10 . 22 13 6 11 Haulers Intercepted . | . . . . . . . Recyclers Shooed . | . . . . . . . Parts Field Recycled . | . . . . . . . Retrieved Matter . | . . . . . . . Parts Self-Destructed . | . . . . . . . Prevented . | . . . . . . . Kills | -11 -10 -10 -9 -9 -8 -8 ------- Run | Yrd Mat Min Mat Min Mat Sto Combat Hostiles Destroyed 37 | . 6 . 12 9 3 7 Guns 21 | . 3 . 8 4 1 5 Cannons 15 | . 3 . 4 5 1 2 Classes Destroyed 6 | . 1 . 3 . 2 . Recycler 2 | . . . . . 2 . Operator 1 | . . . 1 . . . Swarmer 21 | . 6 . 9 4 . 2 Grunt 12 | . . . 1 5 2 4 Sentry 3 | . . . 2 . . 1 Hunter 1 | . . . . . 1 . Best Kill Streak 7 | . 3 . 7 7 3 2 Combat Bots Only 7 | . 3 . 7 7 2 2 Max Kills in Single Turn 1 | . 1 . 1 1 1 1 Gunslinging . | . . . . . . . Exploded . | . . . . . . . Melee . | . . . . . . . Uniques/NPCs Destroyed . | . . . . . . . Combat | -11 -10 -10 -9 -9 -8 -8 -------- Run | Yrd Mat Min Mat Min Mat Sto Hostile Shots Fired 309 | . 38 . 101 44 25 101 Missed 61 | . 7 . 22 9 9 14 Hits 248 | . 31 . 79 35 16 87 Projectile 248 | . 31 . 79 35 16 87 Critical Strikes 8 | . . . 2 1 1 4 Damage Taken 3069 | . 473 . 715 383 268 1230 Core 900 | . 133 . 143 69 44 511 Absorbed by Shields . | . . . . . . . Core Remaining (%) 64 | 100 . 46 . 47 . . Volleys Fired 114 | . 12 . 32 20 13 37 Largest 2 | . 2 . 2 2 2 2 Hottest 126 | . 70 . 100 95 123 126 Shots Fired 189 | . 24 . 38 37 25 65 Gun 121 | . 19 . 22 17 13 50 Cannon 64 | . 5 . 12 20 12 15 Launcher . | . . . . . . . Special 4 | . . . 4 . . . Kinetic 55 | . 17 . 18 20 . . Thermal 131 | . 7 . 20 17 25 62 Explosive . | . . . . . . . Electromagnetic 3 | . . . . . . 3 Robot Hit Streak 11 | . 4 . 11 10 4 3 Robot Miss Streak 6 | . 3 . 6 5 2 4 Penetration Max . | . . . . . . . Secondary Targets 3 | . 2 . . . . 1 Max Gunslinging Chain 1 | . 1 . . . . 1 Shots Hit Robots 115 | . 11 . 29 28 13 34 Core Hits 84 | . 6 . 28 29 7 14 Critical Kills . | . . . . . . . Critical Parts Destroyed . | . . . . . . . Critical Strikes 7 | . 2 . 1 . 1 3 Burn 5 | . 1 . . . 1 3 Blast 2 | . 1 . 1 . . . Melee Attacks . | . . . . . . . Impact . | . . . . . . . Slashing . | . . . . . . . Piercing . | . . . . . . . Sneak Attacks . | . . . . . . . Combat Hostiles . | . . . . . . . Follow-up Attacks . | . . . . . . . Damage Inflicted 2136 | . 150 . 465 436 278 807 Guns 1133 | . 87 . 225 227 138 456 Cannons 808 | . 63 . 215 209 140 181 Explosions 170 | . . . . . . 170 Melee . | . . . . . . . Ramming 1 | . . . 1 . . . Kinetic 591 | . 112 . 270 209 . . Thermal 1495 | . 38 . 194 227 278 758 Explosive . | . . . . . . . Electromagnetic 49 | . . . . . . 49 Impact . | . . . . . . . Slashing . | . . . . . . . Piercing . | . . . . . . . Highest Corruption . | . . . . . . . Average Corruption . | . . . . . . . Corruption Purged . | . . . . . . . Corruption Blocked . | . . . . . . . Overload Shots . | . . . . . . . Overflow Damage 75 | . 75 . . . . . Projectiles . | . . . . . . . Explosions 75 | . 75 . . . . . Melee . | . . . . . . . Knockbacks 7 | . . . 1 6 . . Impact . | . . . . . . . Kinetic 5 | . . . 1 4 . . Secondary 2 | . . . . 2 . . Self-Inflicted Damage 194 | . 160 . . . . 34 Shots 3 | . 2 . . . . 1 Rammed 2 | . . . 1 . . 1 Targets Rammed 2 | . . . 1 . . 1 Kicked . | . . . . . . . Crushed . | . . . . . . . Highest Temperature 501 | . 87 . 166 225 333 501 Average Temperature 151 | . 27 . 61 91 138 240 Received Heat Transfer 975 | . . . 93 162 81 639 Effects 8 | . . . . . 3 5 Shutdowns 2 | . . . . . . 2 Interference 3 | . . . . . 3 . Short Circuit 2 | . . . . . . 2 Damage (minor) 1 | . . . . . . 1 Siege Activations . | . . . . . . . Martial Activations . | . . . . . . . Shielding Activations . | . . . . . . . Robots Disrupted . | . . . . . . . Combat Hostiles . | . . . . . . . Robots Corrupted . | . . . . . . . Combat Hostiles . | . . . . . . . Parts Fried . | . . . . . . . Impact Corruptions . | . . . . . . . Robots Melted 1 | . . . . . 1 . Combat Hostiles 1 | . . . . . 1 . Parts Melted 4 | . 1 . . . 2 1 Heat Transferred 2948 | . 185 . 275 290 592 1606 Parts Sabotaged . | . . . . . . . Parts Stolen . | . . . . . . . Parts Stripped . | . . . . . . . Power Chain Reactions 1 | . . . . . . 1 Alert | -11 -10 -10 -9 -9 -8 -8 ------- Run | Yrd Mat Min Mat Min Mat Sto Maximum Alert Level 1 | . . . 1 1 . . Low Security (%) 92 | 100 100 100 88 73 100 100 Level 1 7 | . . . 11 26 . . Level 2 . | . . . . . . . Level 3 . | . . . . . . . Level 4 . | . . . . . . . Level 5 . | . . . . . . . High Security . | . . . . . . . Max Security . | . . . . . . . Peak Influence 243 | . 188 61 200 243 53 42 Initial 78 | . . 61 7 78 47 17 Average 59 | . 65 44 85 161 16 9 Influence Increases 1129 | . 219 . 377 255 88 190 Destroy 0b10 Robot/C 740 | . 120 . 240 180 60 140 Destroy 0b10 Robot/NC 15 | . . . 5 . 10 . Destroy Leader 130 | . 20 . 40 30 10 30 Successful Hack 5 | . . . . . 5 . Disable Machine 90 | . 45 . 30 . . 15 Destroy Structure 44 | . 34 . 2 . 3 5 Lose Combat Pursuer 105 | . . . 60 45 . . Influence Decreases 1127 | . 60 138 198 332 168 231 Entered New Map 336 | . . 98 14 122 76 26 Time Decay 583 | . 50 40 114 170 92 117 Lost Part 208 | . 10 . 70 40 . 88 Squads Dispatched 6 | . . . 2 . . 4 Investigation . | . . . . . . . Extermination . | . . . . . . . Reinforcement 4 | . . . 2 . . 2 Assault . | . . . . . . . Garrison 2 | . . . . . . 2 Intercept . | . . . . . . . Searches Triggered . | . . . . . . . Construction Impeded . | . . . . . . . Haulers Reinforced . | . . . . . . . Active Scanning Responses . | . . . . . . . Cargo Convoy Interrupts . | . . . . . . . Stealth | -11 -10 -10 -9 -9 -8 -8 --------- Run | Yrd Mat Min Mat Min Mat Sto Distress Signals 5 | . . 1 3 . 1 . Communications Jammed . | . . . . . . . Distress Signals . | . . . . . . . Times Spotted 69 | . 9 . 24 12 9 15 Peak Tracking Total 12 | . 5 . 12 7 3 6 Tactical Retreats 3 | . . . 2 1 . . Traps | -11 -10 -10 -9 -9 -8 -8 ------- Run | Yrd Mat Min Mat Min Mat Sto Traps Triggered 2 | . 2 . . . . . Indirectly . | . . . . . . . Trap Hack Attempts . | . . . . . . . Triggered . | . . . . . . . Disarmed . | . . . . . . . Reprogrammed . | . . . . . . . Reused . | . . . . . . . Traps Extracted . | . . . . . . . Installed . | . . . . . . . Triggered . | . . . . . . . Machines | -11 -10 -10 -9 -9 -8 -8 ---------- Run | Yrd Mat Min Mat Min Mat Sto Machines Disabled 6 | . 3 . 2 . . 1 Max in Single Turn 3 | . 3 . 1 . . 1 Machines Repaired . | . . . . . . . Machines Dismantled . | . . . . . . . Machines Sabotaged . | . . . . . . . Overloaded Fab Kills . | . . . . . . . Hacking | -11 -10 -10 -9 -9 -8 -8 --------- Run | Yrd Mat Min Mat Min Mat Sto Machines Accessed 7 | . 3 . 1 . 1 2 Terminals 7 | . 3 . 1 . 1 2 Fabricators . | . . . . . . . Repair Stations . | . . . . . . . Recycling Units . | . . . . . . . Scanalyzers . | . . . . . . . Garrison Access . | . . . . . . . Total Hacks 13 | . 5 . 3 . 2 3 Successful 3 | . 1 . . . 1 1 Failed 10 | . 4 . 3 . 1 2 Catastrophic 2 | . 1 . . . . 1 Database Lockouts . | . . . . . . . Manual 6 | . 2 . 3 . 1 . Terminals 13 | . 5 . 3 . 2 3 Fabricators . | . . . . . . . Repair Stations . | . . . . . . . Recycling Units . | . . . . . . . Scanalyzers . | . . . . . . . Garrison Access . | . . . . . . . Terminal Hacks 3 | . 1 . . . 1 1 Record 1 | . 1 . . . . . Alert Level 1 | . . . . . . 1 Zone Layout 1 | . . . . . 1 . Fabricator Hacks . | . . . . . . . Repair Station Hacks . | . . . . . . . Recycling Unit Hacks . | . . . . . . . Scanalyzer . | . . . . . . . Garrison Access Hacks . | . . . . . . . Unauthorized Hacks . | . . . . . . . Terminals . | . . . . . . . Fabricators . | . . . . . . . Repair Stations . | . . . . . . . Recycling Units . | . . . . . . . Scanalyzers . | . . . . . . . Garrison Access . | . . . . . . . Data Cores Recovered . | . . . . . . . Used . | . . . . . . . Hacking Detections 7 | . 3 . 1 . 1 2 Full Trace Events . | . . . . . . . Feedback Events . | . . . . . . . Feedback Blocked . | . . . . . . . Robot Schematics Acquired . | . . . . . . . Robots Built . | . . . . . . . Authchips . | . . . . . . . Time . | . . . . . . . Total Robot Build Rating . | . . . . . . . Part Schematics Acquired . | . . . . . . . Parts Built . | . . . . . . . Authchips . | . . . . . . . Time . | . . . . . . . Total Part Build Rating . | . . . . . . . Parts Repaired . | . . . . . . . Time . | . . . . . . . Parts Recycled . | . . . . . . . Recycled Matter . | . . . . . . . Retrieved Matter . | . . . . . . . Retrieved Components . | . . . . . . . Parts Scanalyzed . | . . . . . . . Part Schematics Acquired . | . . . . . . . Parts Damaged . | . . . . . . . Bothacking | -11 -10 -10 -9 -9 -8 -8 ------------ Run | Yrd Mat Min Mat Min Mat Sto Used RIF Installer . | . . . . . . . Robots Hacked . | . . . . . . . Non-combat . | . . . . . . . Combat . | . . . . . . . Robot Hacks Applied . | . . . . . . . Relay Couplers Released . | . . . . . . . Fabnet Peak Effective % . | . . . . . . . Robots Rewired . | . . . . . . . Allies Hacked . | . . . . . . . Hacks Repelled . | . . . . . . . Allies | -11 -10 -10 -9 -9 -8 -8 -------- Run | Yrd Mat Min Mat Min Mat Sto Total Allies . | . . . . . . . Largest Group . | . . . . . . . Highest-Rated Group . | . . . . . . . Highest-Rated Ally . | . . . . . . . Total Orders . | . . . . . . . Ally Attacks . | . . . . . . . Total Damage . | . . . . . . . Kills . | . . . . . . . Allies Corrupted . | . . . . . . . Allies Melted . | . . . . . . . Intel | -11 -10 -10 -9 -9 -8 -8 ------- Run | Yrd Mat Min Mat Min Mat Sto Active Infowar (turns) 1477 | . 177 83 194 353 305 365 Structural 1087 | . 177 83 194 353 280 . Seismic 651 | . . . . . 286 365 Robot Analysis Total . | . . . . . . . Derelict Logs Recovered 1 | . . . . 1 . . Drone Launches . | . . . . . . . Drone Recoveries . | . . . . . . . Exploration | -11 -10 -10 -9 -9 -8 -8 ------------- Run | Yrd Mat Min Mat Min Mat Sto Turns Passed 1742 | 73 183 83 252 353 305 493 Spaces Moved 703 | 51 114 70 124 166 109 69 Core 42 | 8 . . 12 2 . 20 Treads . | . . . . . . . Legs 620 | 43 114 70 71 164 109 49 Wheels 41 | . . . 41 . . . Hover . | . . . . . . . Flight . | . . . . . . . Fastest Speed 50 | 50 120 120 100 120 190 190 Average Speed 159 | 112 120 120 125 171 232 211 Slowest Speed 350 | 150 120 120 250 300 260 350 Overloaded Moves . | . . . . . . . Propulsion Burnouts . | . . . . . . . Robots Hopped . | . . . . . . . Potential Cave-ins . | . . . . . . . Cave-ins Triggered . | . . . . . . . Exploration Rate (%) 20 | 4 24 23 20 39 13 17 Regions Visited 6 Branch Regions 3 Pre-discovered Areas 2 | . . . . 2 . . Known Exits Taken . | . . . . . . . Unknown Exits Taken 6 | 1 1 1 1 1 1 . Scrap Searched 1 | . . . . 1 . . Spaces Dug . | . . . . . . . Terrain Destroyed 45 | . 35 . 2 . 3 5 Melee . | . . . . . . . Projectile 7 | . . . 2 . 3 2 AOE 38 | . 35 . . . . 3 Terrain Rammed . | . . . . . . . Walls Destroyed . | . . . . . . . Machines Disabled . | . . . . . . . Actions | -11 -10 -10 -9 -9 -8 -8 --------- Run | Yrd Mat Min Mat Min Mat Sto Total 1133 | 66 136 69 177 197 136 352 Wait 240 | . . . . . 3 237 Move 697 | 50 113 69 123 165 108 69 Hop . | . . . . . . . Pick Up 35 | 10 6 . 10 5 4 . Fast Attach 3 | . 1 . . . 2 . Attach 26 | 6 2 . 7 5 1 5 Detach . | . . . . . . . Swap 7 | . 1 . 1 2 2 1 Drop 9 | . 1 . 3 . 3 2 Fire 114 | . 12 . 32 20 13 37 Melee . | . . . . . . . Ram 2 | . . . 1 . . 1 Kick . | . . . . . . . Crush . | . . . . . . . Escape Stasis . | . . . . . . . Rewire . | . . . . . . . Trap . | . . . . . . . Miscellaneous . | . . . . . . . Route ------- -11/Scrapyard -10/Materials -10/Mines -9/Materials -9/Mines -8/Materials -8/Storage History --------- Turn | Location | Event 9 | -11/Scrapyard | Discovered new exit (range 16) 74 | -11/Scrapyard | Entered Materials 203 | -10/Materials | Core integrity fell below 50% 231 | -10/Materials | Discovered new exit (range 15) 257 | -10/Materials | Entered Mines 262 | -10/Mines | Discovered new exit (range 14) 297 | -10/Mines | Assembled infested the area 312 | -10/Mines | Build established: Mutant 340 | -10/Mines | Entered Materials 340 | -9/Materials | Evolved 2 slots: Propulsion x2 441 | -9/Materials | Lost 4 parts (1p1n2w) 566 | -9/Materials | Destroyed 7 combat bots 568 | -9/Materials | Lost 5 parts (1p3n1w) 586 | -9/Materials | Discovered new exit (range 7) 592 | -9/Materials | Entered Mines 650 | -9/Mines | Learned location of Zion (-6) 700 | -9/Mines | Core integrity fell below 50% 741 | -9/Mines | Destroyed 7 combat bots 927 | -9/Mines | Discovered new exit (range 10) 932 | -9/Mines | Learned location of Storage (-8) 945 | -9/Mines | Entered Materials 945 | -8/Materials | Evolved 2 slots: Utility x2 1146 | -8/Materials | Discovered new exit (range 14) 1250 | -8/Materials | Entered Storage 1559 | -8/Storage | Lost 3 parts (1p1n1u) 1577 | -8/Storage | Garrison activated, responded to threat 1716 | -8/Storage | Core integrity fell below 50% 1737 | -8/Storage | Core integrity fell below 20% 1743 | -8/Storage | Destroyed by G-47 Trooper with Particle Gun Last Messages --------------- 01710_ Field Laser destroyed. 01715_ Critical hit (Burn: +37). 01721_ Sml. Storage Unit destroyed. 01722_ K-01 Serf collects debris. 01723_ G-47 Trooper destroyed. 01726_ K-01 Serf collects debris. 01731_ Lgt. Ion Engine destroyed. 01731_ Chain reaction triggered in Lgt. Nuclear Core. 01731_ Repair Station disabled. 01731_ Backup Plating I tumbles out of repair station. 01731_ Backup Power I tumbles out of repair station. 01731_ Backup Propulsion I tumbles out of repair station. 01731_ K-01 Serf collects debris. 01733_ Hvy. EM Pulse Gun destroyed. 01733_ Field Laser destroyed. 01733_ K-01 Serf collects debris. 01737_ R-06 Scavenger collects Imp. Heat Sink. 01737_ K-01 Serf collects debris. 01740_ R-06 Scavenger collects Heat Sink. 01742_ K-01 Serf collects debris. Map ----- +----------------------------------------------------+ | ?????????????????????????????????????????????????? | | ?????????????????????????????????????????????????? | | ?????????????????????????????????????????????????? | | ?????????????????????????????????????????????????? | | ?????????????????????????????????????????????????? | | ?????????????????????????????????????????????????? | | ?????????????????????????????????????????????????? | | ?????????????????????????????????????????????????? | | ?????????????????????????????????????????????????? | | ????????????????????????????????????????#####????? | | ????????????????????????????????????????# #????? | | ????????????????????????????????????????# #????? | | ??????????????????????##????????????????# #????? | | ?????????????????????## #######?????????# #????? | | ?????????????????????# #?????????# #????? | | ?????????????????????# """ #?????????# %###??? | | ?????????????????????# """ ###########%% T#??? | | ?????????????????????# """ # ""#??? | | ?????????????????????# +% % % ###??? | | ????????????????????## """ #^ % #????? | | ????????????????????#T * rr# ########/#####?? | | ????????????????????## % g= # #???# #?? | | ?????????????????????# [Ygk[# #???# """ #?? | | ????????????????##########gk;## #???# """ ### | | ????????????????# = # #???# """ ""# | | ????????????????# """" @ + #???# Y"# | | ????????????????? """" "" # #???# """ ""# | | ??????????????????? """" G" # #???# """ ### | | ??????????????????? """" "" # #???# """ #?? | | ??????????????????? # #???# #?? | | ???????????????????##### ###### #???##"T"#####?? | | ???????????????????????##?????# #????#"""#?????? | | ??????????????????????????????# ?????#####?????? | | ??????????????????????????????? ???????????????? | | ?????????????????????????????????????????????????? | | ?????????????????????????????????????????????????? | | ?????????????????????????????????????????????????? | | ?????????????????????????????????????????????????? | | ?????????????????????????????????????????????????? | | ?????????????????????????????????????????????????? | | ?????????????????????????????????????????????????? | | ?????????????????????????????????????????????????? | | ?????????????????????????????????????????????????? | | ?????????????????????????????????????????????????? | | ?????????????????????????????????????????????????? | | ?????????????????????????????????????????????????? | | ?????????????????????????????????????????????????? | | ?????????????????????????????????????????????????? | | ?????????????????????????????????????????????????? | | ?????????????????????????????????????????????????? | +----------------------------------------------------+ Best States ------------- Heat Dissipation 31 Energy Generation 10 Energy Capacity 250 Matter Stores 300 Matter Capacity 300 Sight Range 16 Terrain Scan Density 10 Armor Coverage 225 Evasion (%) 55 Item Schematics ----------------- None Robot Schematics ------------------ None Fabricated ------------ Nothing Repaired ---------- Nothing Alien Tech Used ----------------- None Achievements -------------- None Challenges ------------ None Game ------ Seed SpacefoldMeleeUnit Manual? 0 Play Time 00:23:08 Cumulative 34.9 hours Start 2025.08.14 @ 15:56:53 End 2025.08.14 @ 16:18:39 Sessions 1 Manual Loads 0 Difficulty Rogue Special Mode None Game No. 59 Rogue 59 Adventurer 0 Explorer 0 Win Type - Total 0 Types 0/0/0/0/0/0/0/0/0/0 Lore% 17 Gallery% 27 Achievement% 21 Wizard Run 0 Options --------- Layout 0 ASCII 0 Keyboard 0 Movement Mouse Keybinds 0 Fullscreen 2 Font 24/Smallcaps Map View 76x50 Zoom Use 0% Tactical HUD 1 Map Filters NONE Filters NONE Steam 1 RUN: 6b117bfe-12a6-49f1-ba25-90557e7af49f